fUSD/lending_fUSD_20241119
["ID","MTS","AMOUNT","RATE_DAILY","PERIOD"]
[342669855,1732032640102,-196.24,0.00037506,120]
[342669856,1732032640112,-1000.0,0.000376,15]
[342669857,1732032640123,-150.0,0.00037669,2]
[342669858,1732032640133,-1000.0,0.000379,15]
[342669859,1732032640143,-704.26263201,0.00038,120]
[342669860,1732032640153,-1000.0,0.000382,15]
[342669861,1732032640162,-159.48,0.00038267,2]
[342669862,1732032640172,-800.0,0.00038356,2]
[342669863,1732032640182,-800.0,0.00038356,2]
[342669864,1732032640191,-302.40733601,0.00038356,2]
[342669865,1732032640200,-407.32646748,0.00038356,2]
[342669866,1732032640212,-392.67353252,0.00038356,2]
[342669867,1732032640381,-800.0,0.00038356,2]
[342669869,1732032640395,-800.0,0.00038356,2]
[342669870,1732032640406,-800.0,0.00038356,2]
[342669871,1732032640416,-800.0,0.00038356,2]
[342669872,1732032640427,-1000.0,0.000385,15]
[342669873,1732032640437,-150.0,0.00038536,2]
[342669874,1732032640446,-1500.0,0.000386,2]
[342669875,1732032640457,-419.8,0.00038682,3]
[342669876,1732032640468,-207.19,0.00038998,120]
[342669877,1732032640480,-500.0,0.00039194,2]
[342669878,1732032640489,-500.0,0.00039194,2]
[342669879,1732032640498,-500.0,0.00039194,2]
[342669880,1732032640507,-500.0,0.00039194,2]
[342669881,1732032640517,-500.0,0.00039194,2]
[342669882,1732032640526,-500.0,0.00039194,2]
[342669883,1732032640535,-500.0,0.00039194,2]
[342669884,1732032640545,-500.0,0.00039194,2]
[342669885,1732032640554,-500.0,0.00039194,2]
[342669886,1732032640563,-500.0,0.00039194,2]
[342669887,1732032640572,-500.0,0.00039194,2]
[342669888,1732032640582,-500.0,0.00039194,2]
[342669889,1732032640590,-500.0,0.00039194,2]
[342669890,1732032640599,-500.0,0.00039194,2]
[342669891,1732032640608,-500.0,0.00039194,2]
[342669892,1732032640618,-500.0,0.00039194,2]
[342669893,1732032640627,-500.0,0.00039194,2]
[342669894,1732032640636,-500.0,0.00039194,2]
[342669895,1732032640645,-500.0,0.00039194,2]
[342669896,1732032640654,-500.0,0.00039194,2]
[342669897,1732032640663,-500.0,0.00039194,2]
[342669898,1732032640672,-500.0,0.00039194,2]
[342669899,1732032640681,-150.0,0.00039404,2]
[342669900,1732032640690,-252.03,0.000395,30]
[342669901,1732032640700,-151.0,0.00039973,120]
[342669902,1732032640709,-500.0,0.00039999,2]
[342669903,1732032640719,-500.0,0.00039999,2]
[342669904,1732032640728,-12500.0,0.0004,120]
[342669905,1732032640738,-8000.0,0.0004,30]
[342669906,1732032640747,-2773.32,0.0004,120]
[342669907,1732032640756,-704.26263201,0.0004,120]
[342669908,1732032640766,-2866.63583547,0.00040131,2]
[342669909,1732032640778,-12420.0,0.00040131,2]
[342669910,1732032640789,-901.4202829,0.00040131,2]
[342669911,1732032640801,-1522.22617121,0.00040131,2]
[342669912,1732032640815,-540.71771042,0.00040131,2]
[342669913,1732032640825,-1283.57813958,0.0004015,30]
[342669914,1732032640836,-6716.42186042,0.0004015,30]
[342669915,1732032640846,-150.0,0.00040271,2]
[342669916,1732032640855,-301.50379308,0.00040299,2]
[342669917,1732032640865,-2074.8743465,0.000403,2]
[342669918,1732032640877,-925.1256535,0.000403,2]
[342669919,1732032640889,-513.76802795,0.000403,30]
[342669920,1732032640902,-1575.15889195,0.000403,30]
[342669921,1732032640913,-4125.78510001,0.000403,30]
[342669922,1732032641019,-377.67798009,0.000403,30]
[342669923,1732032641028,-3037.89847648,0.00040375,120]
[342669925,1732032643074,-500.0,0.000289,5]
[342669926,1732032643083,-500.0,0.000299,5]
[342669927,1732032643091,-500.0,0.000309,5]
[342669928,1732032643100,-150.0,0.00040299,2]
[342669929,1732032643108,-9462.10152352,0.00040375,120]
[342669930,1732032643117,-12500.0,0.0004075,120]
[342669931,1732032643126,-225.71,0.00040952,2]
[342669932,1732032643135,-1000.0,0.0004106,2]
[342669933,1732032643145,-150.0,0.00041089,60]
[342669934,1732032643154,-1484.98608285,0.00041089,60]
[342669935,1732032643164,-520.50062347,0.00041095,30]
[342669936,1732032643173,-157.0,0.00041096,2]
[342669937,1732032643183,-196.85899164,0.000411,2]
[342669938,1732032643192,-200.0,0.000411,2]
[342669939,1732032643201,-184.0,0.000411,2]
[342669940,1732032643210,-250.0,0.000411,2]
[342669941,1732032643220,-12500.0,0.00041125,120]
[342669942,1732032643231,-150.0,0.00041138,2]
[342669943,1732032643242,-1272.45508384,0.000415,120]
[342669944,1732032643257,-850.904353,0.000279,5]
[342669945,1732032643266,-11227.54491616,0.000415,120]
[342669946,1732032643275,-207.19,0.00041582,120]
[342669947,1732032643285,-196.24,0.00041674,120]
[342669948,1732032643294,-5000.0,0.00041711,2]
[342669949,1732032643304,-159.48,0.00041851,2]
[342669950,1732032643312,-12500.0,0.00041875,120]
[342669951,1732032643322,-150.0,0.00042005,2]
[342669952,1732032643330,-629.75,0.0004224,30]
[342669953,1732032643340,-12500.0,0.0004225,120]
[342669954,1732032643350,-151.0,0.00042466,120]
[342669955,1732032643360,-12500.0,0.00042625,120]
[342669956,1732032643371,-150.0,0.00042873,2]
[342669957,1732032643380,-2396.09913738,0.00043,120]
[342669958,1732032643389,-3000.0,0.00043,2]
[342669959,1732032643399,-1408.52526402,0.00043,120]
[342669960,1732032643408,-12500.0,0.00043,120]
[342669961,1732032643419,-782.7587,0.00043275,2]
[342669962,1732032643428,-13162.0929,0.00043275,2]
[342669963,1732032643438,-255.0,0.00043375,7]
[342669964,1732032643447,-12500.0,0.00043375,120]
[342669965,1732032643456,-150.0,0.0004374,2]
[342669966,1732032643465,-12500.0,0.0004375,120]
[342669967,1732032643474,-219.08,0.00043848,120]
[342669968,1732032643486,-507.949773,0.00044,57]
[342669969,1732032643495,-1083.94846,0.00044065,2]
[342669970,1732032643504,-12500.0,0.00044125,120]
[342669971,1732032643513,-207.19,0.00044166,120]
[342669972,1732032643523,-12500.0,0.000445,120]
[342669973,1732032643532,-150.0,0.00044607,2]
[342669974,1732032643541,-12500.0,0.00044875,120]
[342669975,1732032643550,-151.0,0.00044959,120]
[342669976,1732032643559,-50000.0,0.00045,35]
[342669978,1732032643569,-800.0,0.00045,120]
[342669979,1732032643578,-15000.0,0.00045,120]
[342669981,1732032643588,-4615.0,0.00045,120]
[342669982,1732032643597,-25.91798462,0.00045166,2]
[342669983,1732032643613,-437.609,0.00023254,15]
[342669984,1732032643622,-272.60705761,0.00045166,2]
[342669985,1732032643634,-701.47495777,0.00045166,2]
[342669986,1732032643643,-204.69862196,0.0004525,120]
[342669987,1732032643654,-4617.6,0.0004525,120]
[342669988,1732032643670,-500.0,0.00040375,120]
[342669989,1732032643680,-7677.70137804,0.0004525,120]
[342669990,1732032643689,-159.48,0.00045435,2]
[342669991,1732032643698,-150.0,0.00045474,2]
[342669992,1732032643707,-500.0,0.00045624,2]
[342669993,1732032643717,-283.94988884,0.00045624,2]
[342669994,1732032643726,-12500.0,0.00045625,120]
[342669995,1732032643739,-3000.0,0.000458,2]
[342669996,1732032643748,-196.24,0.00045841,120]
[342669997,1732032643757,-2766.52873311,0.00046,36]
[342669998,1732032643769,-5867.31357,0.00046,36]
[342669999,1732032643780,-987.42661548,0.00046,36]
[342670000,1732032643791,-4933.64667234,0.00046,36]
[342670001,1732032643834,-7998.26814213,0.00046,36]
[342670002,1732032643845,-1623.90406277,0.00046,36]
[342670003,1732032643858,-608.2999995,0.00046,36]
[342670004,1732032643869,-1341.7000005,0.00046,36]
[342670005,1732032643880,-3628.61000001,0.00046,36]
[342670006,1732032643895,-648.0,0.00046,36]
[342670009,1732032646094,-9255.1534596,0.00046,36]
[342670010,1732032646359,-150.0,0.00041095,30]
[342670011,1732032646369,-350.0,0.00046,36]
[342670016,1732032731463,190.551983,9.863e-05,2]
[342670235,1732033256929,-1450.0,0.00012,2]
[342670236,1732033256953,-155.76752852,0.00012,2]
[342670237,1732033256977,-150.0,0.00013188,2]
[342670238,1732033257000,-1500.0,0.00014,2]
[342670239,1732033257023,-217.06,0.00015342,2]
[342670241,1732033355740,1793.0,0.00015,2]
[342670242,1732033357100,1614.0,0.00015,2]
[342670245,1732033529741,1118.17247148,0.00010948,2]
[342670248,1732033634689,50000.0,9.982e-05,2]
[342670249,1732033677305,5000.0,0.00022,120]
[342670250,1732033689342,-2881.82752852,0.00010948,2]
[342670251,1732033689387,-593.89,0.00015342,2]
[342670252,1732033689410,-109964.39516954,0.0002,4]
[342670254,1732033711503,4692541.83794452,0.0001,2]
[342670260,1732033745164,-42293.03582,0.0001,2]
[342670261,1732033745198,-7176.140454,0.0001,2]
[342670262,1732033749121,-52203.2574,0.0001,2]
[342670263,1732033769145,-13477.16487692,0.0001,2]
[342670264,1732033769171,-1000.0,0.00019999,2]
[342670265,1732033769194,-3475.71752852,0.0002,4]
[342670266,1732033769217,-155.26407586,0.0002,2]
[342670267,1732033769240,-217.06,0.00021745,2]
[342670268,1732033769268,-593.89,0.00021745,2]
[342670269,1732033769291,-150.0,0.00021999,2]
[342670270,1732033769313,-1201.185,0.00024667,15]
[342670271,1732033769337,-150.0,0.00025,2]
[342670272,1732033769360,-5146.97590917,0.00025,2]
[342670273,1732033769384,-150.0,0.0002612,2]
[342670274,1732033769408,-611.92465977,0.00028,60]
[342670275,1732033769431,-678.54,0.00028,5]
[342670276,1732033769454,-1340.78,0.00028,2]
[342670277,1732033769476,-880.62,0.00028147,2]
[342670278,1732033769499,-1502.38,0.00028147,2]
[342670279,1732033769522,-217.06,0.00028147,2]
[342670280,1732033769545,-593.89,0.00028147,2]
[342670281,1732033769568,-500.0,0.00028414,5]
[342670282,1732033769591,-8667.25,0.00029171,2]
[342670283,1732033769614,-189.99,0.00029171,12]
[342670284,1732033769637,-824.63,0.00029171,2]
[342670285,1732033769660,-171.88,0.00029171,2]
[342670286,1732033769682,-324.64608094,0.00029236,5]
[342670287,1732033769703,-500.0,0.00029236,2]
[342670288,1732033769726,-466.05364377,0.00029236,5]
[342670289,1732033769751,-299.99,0.00029236,12]
[342670290,1732033769773,-2023.06,0.0002979,10]
[342670291,1732033769795,-300.0,0.00029799,2]
[342670292,1732033769818,-3472.9996,0.000298,2]
[342670293,1732033769840,-81396.23642505,0.000298,2]
[342670294,1732033774242,-9831.55547495,0.000298,2]
[342670295,1732033774269,-150.0,0.000298,2]
[342670296,1732033774293,-405.0,0.00029899,2]
[342670297,1732033774317,-6145.75,0.000299,10]
[342670298,1732033774343,-499.99,0.000299,2]
[342670299,1732033774367,-151.0,0.0003,120]
[342670300,1732033774395,-2084.86255438,0.0003,3]
[342670301,1732033774422,-2647.04636414,0.0003,30]
[342670302,1732033774445,-250.0,0.00030842,2]
[342670303,1732033774468,-627.13642484,0.00030883,5]
[342670304,1732033774490,-250.0,0.00030912,2]
[342670305,1732033774513,-1000.0,0.00030912,2]
[342670306,1732033774535,-171.88,0.00031435,2]
[342670307,1732033774558,-9588.0,0.00032287,2]
[342670308,1732033774581,-1000.0,0.00032326,2]
[342670309,1732033774610,-300.0,0.00032456,2]
[342670310,1732033774635,-2427.67,0.0003299,10]
[342670311,1732033774658,-9791.85788712,0.00033,2]
[342670312,1732033774678,-24820.94026376,0.00033,2]
[342670313,1732033774702,-151.0,0.00033014,120]
[342670314,1732033774726,-1154.47247847,0.000335,2]
[342670315,1732033774750,-171.88,0.00033698,2]
[342670316,1732033774772,-300.0,0.00033826,2]
[342670317,1732033774794,-55567.53721454,0.00034,120]
[342670318,1732033774816,-500.49023213,0.00034485,5]
[342670319,1732033774838,-500.0,0.00034515,5]
[342670320,1732033774860,-217.06,0.00034549,2]
[342670321,1732033774881,-593.89,0.00034549,2]
[342670322,1732033774904,-1000.0,0.00034776,2]
[342670323,1732033774927,-174.52978585,0.000349,15]
[342670324,1732033774948,-1845.30848788,0.0003499,2]
[342670333,1732033832251,-958.43965495,0.00031027,120]
[342670334,1732033832261,-492.98384241,0.00031027,120]
[342670335,1732033832273,-65.23414017,0.00031027,2]
[342670336,1732033832362,-84.76585983,0.00031027,2]
[342670337,1732033832371,-286.88,0.00031027,2]
[342670338,1732033832381,-601.37321073,0.00031027,120]
[342670339,1732033832390,-2000.0,0.00031027,2]
[342670340,1732033832400,-500.35282558,0.00031027,30]
[342670341,1732033832411,-2780.92530111,0.00031027,30]
[342670342,1732033832421,-500.0,0.00031027,7]
[342670343,1732033832430,-2793.99589505,0.00031027,30]
[342670344,1732033832441,-505.07880384,0.00031027,30]
[342670345,1732033832453,-262.48322908,0.00031027,30]
[342670346,1732033832464,-798.40191568,0.00031027,30]
[342670347,1732033832476,-1428.30294052,0.00031027,30]
[342670348,1732033832489,-295.44814184,0.00031027,30]
[342670349,1732033832501,-42.2620203,0.00031027,30]
[342670350,1732033832513,-150.0,0.00034989,2]
[342670351,1732033832523,-210513.56223054,0.0003499,2]
[342670352,1732033832533,-150.0,0.0003499,7]
[342670353,1732033832544,-3734.1,0.0003499,10]
[342670354,1732033832554,-6991.2527216,0.00035,2]
[342670355,1732033832563,-1191.3785518,0.00035,3]
[342670356,1732033832574,-2316.01679267,0.00035,90]
[342670357,1732033832583,-2833.03,0.00035006,2]
[342670358,1732033832592,-195.05,0.000352,2]
[342670359,1732033832601,-200.0,0.000352,2]
[342670360,1732033832611,-426.16946794,0.00035303,2]
[342670361,1732033832620,-426.16946794,0.00035477,2]
[342670362,1732033832629,-250.0,0.00035553,2]
[342670363,1732033832638,-426.16946794,0.0003582,2]
[342670364,1732033832648,-2556.26027895,0.000359,30]
[342670365,1732033832657,-150.0,0.00035918,2]
[342670366,1732033832666,-282.45,0.0003593,120]
[342670367,1732033832676,-200.0,0.00035953,2]
[342670368,1732033832685,-171.88,0.00035962,2]
[342670369,1732033832695,-151.0,0.00036027,120]
[342670370,1732033832704,-500.0,0.00036095,2]
[342670371,1732033832714,-426.16946794,0.00036127,2]
[342670372,1732033832723,-1083.94846,0.00036282,2]
[342670373,1732033832733,-150.0,0.00036322,2]
[342670374,1732033832743,-1013.42,0.00036355,120]
[342670375,1732033832753,-426.16946794,0.00036356,2]
[342670376,1732033832763,-186.47,0.00036382,120]
[342670377,1732033832773,-23900.0,0.00036399,2]
[342670378,1732033832782,-426.16946794,0.00036482,2]
[342670379,1732033832793,-3132.78,0.00036492,2]
[342670380,1732033832803,-2751.0,0.00036576,120]
[342670381,1732033832812,-500.21366048,0.00036882,5]
[342670382,1732033832821,-323.33690313,0.00036882,5]
[342670383,1732033832830,-426.16946794,0.00036927,2]
[342670384,1732033832839,-1531.60333592,0.00036974,9]
[342670385,1732033832849,-51035.54780204,0.00037,2]
[342670386,1732033832861,-9095.03312102,0.00037,2]
[342670387,1732033832878,-5391.0768465,0.00037,2]
[342670388,1732033832889,-7541.02648054,0.00037,2]
[342670390,1732033832902,-7107.03305,0.00037,2]
[342670392,1732033832919,-8477.6676,0.00037,2]
[342670394,1732033838319,-62491.40892703,0.00037,2]
[342670395,1732033838328,-2023.25494329,0.00037,2]
[342670396,1732033838339,-8070.35073553,0.00037,2]
[342670397,1732033838349,-426.16946794,0.00037039,2]
[342670398,1732033838358,-150.0,0.00037292,2]
[342670399,1732033838367,-426.16946794,0.00037409,2]
[342670400,1732033838376,-11087.97528772,0.00037473,3]
[342670401,1732033838386,-4146.12186309,0.0003759,2]
[342670402,1732033838395,-426.16946794,0.00037669,2]
[342670403,1732033838404,-166.0547527,0.000378,2]
[342670404,1732033838413,-426.16946794,0.00037876,2]
[342670405,1732033838422,-2171.41,0.0003789,10]
[342670406,1732033838431,-64362.9658816,0.000379,2]
[342670407,1732033838440,-958.43965495,0.00038,120]
[342670408,1732033838449,-492.98384241,0.00038,120]
[342670409,1732033838458,-171.88,0.00038226,2]
[342670410,1732033838467,-263.683,0.00038256,2]
[342670411,1732033838476,-2893.2062,0.00038256,2]
[342670412,1732033838485,-150.0,0.00038263,2]
[342670413,1732033838494,-426.16946794,0.00038342,2]
[342670414,1732033838503,-1872.648,0.00038356,51]
[342670415,1732033838512,-178.624,0.00038356,51]
[342670416,1732033838521,-800.0,0.00038356,2]
[342670417,1732033838530,-800.0,0.00038356,2]
[342670418,1732033838539,-800.0,0.00038356,2]
[342670419,1732033838551,-800.0,0.00038356,2]
[342670420,1732033838560,-800.0,0.00038356,2]
[342670421,1732033838570,-426.16946794,0.00038444,2]
[342670422,1732033838579,-1083.9484599,0.00038625,2]
[342670423,1732033838588,-1000.0,0.00038639,2]
[342670424,1732033838597,-426.16946794,0.00038698,2]
[342670425,1732033838606,-186.47,0.00038966,120]
[342670426,1732033838615,-10000.0,0.00039,5]
[342670427,1732033838624,-14490.88452686,0.00039,2]
[342670428,1732033838633,-151.0,0.00039041,120]
[342670429,1732033838642,-426.16946794,0.00039079,2]
[342670430,1732033838651,-150.0,0.00039233,2]
[342670431,1732033838660,-7343.5541,0.00039234,2]
[342670432,1732033838670,-2021.0115,0.00039234,2]
[342670433,1732033838678,-4806.39764102,0.00039398,120]
[342670434,1732033838687,-426.16946794,0.00039443,2]
[342670435,1732033838697,-426.16946794,0.00039676,2]
[342670436,1732033838706,-3404.41670193,0.000397,2]
[342670437,1732033838716,-200.0,0.0003976,2]
[342670438,1732033838725,-217.0116,0.000398,2]
[342670439,1732033838734,-426.16946794,0.00039833,2]
[342670440,1732033838743,-2500.0,0.000399,2]
[342670441,1732033838752,-48690.4776,0.000399,2]
[342670442,1732033838761,-18486.846,0.000399,2]
[342670443,1732033838771,-965.67,0.00039973,120]
[342670444,1732033838780,-50000.0,0.0004,20]
[342670445,1732033838789,-12499.99,0.0004,120]
[342670446,1732033838800,-12500.0,0.0004,120]
[342670447,1732033838809,-12499.99,0.0004,120]
[342670448,1732033838817,-12500.0,0.0004,120]
[342670449,1732033838828,-12499.99,0.0004,120]
[342670450,1732033838837,-12500.0,0.0004,120]
[342670451,1732033838846,-958.43965495,0.0004,120]
[342670452,1732033838856,-492.98384241,0.0004,120]
[342670453,1732033838865,-12500.0,0.0004,120]
[342670454,1732033838876,-477.12749073,0.0004,30]
[342670455,1732033838886,-319.93674086,0.0004,30]
[342670456,1732033838898,-1502.90861206,0.0004,30]
[342670457,1732033838908,-55266.68991702,0.0004,30]
[342670458,1732033838917,-1461.02521879,0.0004,30]
[342670459,1732033838928,-262.52082503,0.0004,120]
[342670460,1732033838939,-191.59081922,0.0004,30]
[342670461,1732033838949,-195154.19045233,0.0004,30]
[342670462,1732033838959,-20887.84473394,0.0004,7]
[342670463,1732033838969,-374.20945489,0.0004,2]
[342670464,1732033838978,-1180.4253977,0.0004,120]
[342670465,1732033838987,-1299.10414192,0.0004,5]
[342670466,1732033838996,-473.67243398,0.0004,120]
[342670467,1732033839004,-630.19570963,0.0004,30]
[342670468,1732033839013,-2037.75588538,0.0004,120]
[342670469,1732033839022,-150.0,0.00040203,2]
[342670470,1732033839031,-426.16946794,0.00040261,2]
[342670471,1732033839043,-9124.0513,0.00040275,2]
[342670472,1732033839052,-500.0,0.00040299,2]
[342670474,1732033839063,-500.0,0.00040374,2]
[342670476,1732033839072,-184.54613747,0.00040374,2]
[342670477,1732033839081,-12500.0,0.00040375,120]
[342670478,1732033839090,-12500.0,0.00040375,120]
[342670479,1732033839100,-12500.0,0.00040375,120]
[342670480,1732033839109,-282.45,0.00040422,120]
[342670481,1732033839118,-43199.39763494,0.0004048,10]
[342670482,1732033839128,-171.88,0.0004049,2]
[342670483,1732033839137,-1652.05593781,0.000405,120]
[342670484,1732033839147,-426.16946794,0.00040544,2]
[342670485,1732033839156,-12500.0,0.0004075,120]
[342670487,1732033839166,-11227.57,0.0004075,120]
[342670489,1732033839175,-12500.0,0.0004075,120]
[342670491,1732033839184,-426.16946794,0.0004079,2]
[342670492,1732033839193,-217.06,0.00040952,2]
[342670493,1732033839202,-593.89,0.00040952,2]
[342670494,1732033839212,-1083.9484599,0.00040967,2]
[342670495,1732033839222,-50000.0,0.00041,21]
[342670497,1732033839364,-3040.27517952,0.00041,120]
[342670498,1732033839374,-680.70387343,0.00041,60]
[342670499,1732033839383,-426.16946794,0.00041008,2]
[342670500,1732033839392,-157.0,0.00041096,2]
[342670501,1732033839401,-325.0,0.000411,2]
[342670502,1732033839410,-12500.0,0.00041125,120]
[342670503,1732033839420,-150.0,0.00041173,2]
[342670504,1732033839429,-426.16946794,0.00041304,2]
[342670505,1732033839438,-426.16946794,0.00041438,2]
[342670506,1732033839448,-12500.0,0.000415,120]
[342670507,1732033839458,-186.47,0.0004155,120]
[342670508,1732033839467,-426.16946794,0.00041777,2]
[342670509,1732033839476,-12500.0,0.00041875,120]
[342670510,1732033839485,-14722.72329724,0.0004191,2]
[342670511,1732033839495,-426.16946794,0.00041921,2]
[342670512,1732033839504,-50000.0,0.00042,22]
[342670513,1732033839513,-50000.0,0.00042,22]
[342670514,1732033839523,-4367.92034569,0.00042,2]
[342670515,1732033839533,-20000.0,0.00042,2]
[342670516,1732033839542,-8890.71163564,0.00042,2]
[342670517,1732033839553,-448.03698574,0.00042,120]
[342670518,1732033839563,-1638.50291101,0.00042,14]
[342670519,1732033839573,-5977.94313265,0.00042,120]
[342670520,1732033839583,-55193.62852479,0.00042,30]
[342670521,1732033839592,-576.0,0.00042,2]
[342670522,1732033839602,-707216.96486512,0.00042,30]
[342670523,1732033839615,-124895.68333932,0.00042,30]
[342670524,1732033839627,-7033.80003209,0.00042,30]
[342670525,1732033839643,-4525.04866812,0.00042,30]
[342670526,1732033839654,-1497.4,0.00042,30]
[342670527,1732033839665,-316.17,0.00042,30]
[342670528,1732033839681,-1212029.45427237,0.00042,30]
[342670529,1732033839690,-1318.51879091,0.0004201,2]
[342670530,1732033839699,-151.0,0.00042055,120]
[342670531,1732033839711,-150.0,0.00042144,2]
[342670532,1732033839720,-426.16946794,0.00042249,2]
[342670533,1732033839729,-6988.56,0.0004225,120]
[342670534,1732033839739,-947.06109852,0.0004248,115]
[342670535,1732033839749,-1000.0,0.00042503,2]
[342670536,1732033839758,-426.16946794,0.00042557,2]
[342670537,1732033839767,-171.88,0.00042754,2]
[342670538,1732033839777,-64847.86917859,0.000428,60]
[342670539,1732033839787,-2610.52682478,0.000428,2]
[342670540,1732033839797,-750.67257986,0.000429,30]
[342670541,1732033839806,-504.16651886,0.000429,120]
[342670542,1732033839815,-50000.0,0.00043,23]
[342670543,1732033839825,-1916.8793099,0.00043,120]
[342670544,1732033839834,-985.96768481,0.00043,120]
[342670545,1732033839843,-214.0,0.00043,7]
[342670546,1732033839853,-36673.94503808,0.00043,120]
[342670547,1732033839863,-71497.82945335,0.00043,10]
[342670548,1732033839872,-35295.74954633,0.00043,120]
[342670549,1732033839881,-62973.47933859,0.00043,2]
[342670550,1732033839890,-502.55840338,0.00043,120]
[342670551,1732033839900,-37386.04333197,0.00043,120]
[342670552,1732033839910,-4091.52057258,0.00043,120]
[342670553,1732033839919,-334.48282943,0.00043,60]
[342670554,1732033839929,-5497.91,0.00043,30]
[342670555,1732033839940,-17626.80323807,0.00043,120]
[342670556,1732033839950,-426.16946794,0.00043011,2]
[342670557,1732033839960,-150.0,0.00043114,2]
[342670558,1732033839969,-4615.0,0.00043175,120]
[342670559,1732033839979,-426.16946794,0.00043203,2]
[342670560,1732033839988,-1000.0,0.00043299,5]
[342670561,1732033839998,-1083.9484599,0.0004331,2]
[342670562,1732033840007,-426.16946794,0.00043425,2]
[342670563,1732033840016,-15298.01528434,0.000435,2]
[342670564,1732033840026,-193744.15126167,0.000437,120]
[342670565,1732033840035,-426.16946794,0.00043788,2]
[342670566,1732033840044,-470.32417197,0.000438,30]
[342670569,1732033840055,-426.16946794,0.00043848,2]
[342670571,1732033840064,-174.52978585,0.00043958,15]
[342670572,1732033840073,-500.0,0.00043999,2]
[342670573,1732033840082,-50000.0,0.00044,24]
[342670574,1732033840091,-90883.1341537,0.00044,30]
[342670575,1732033840100,-11193.46777272,0.00044,30]
[342670577,1732033840110,-294.11577393,0.00044,31]
[342670578,1732033840119,-10023.3539824,0.00044,120]
[342670579,1732033840128,-150.0,0.00044084,2]
[342670580,1732033840137,-186.47,0.00044134,120]
[342670581,1732033840146,-426.16946794,0.00044209,2]
[342670582,1732033840155,-426.16946794,0.00044477,2]
[342670583,1732033840166,-50165.98905139,0.0004462,2]
[342670585,1732033840177,-306.57034511,0.0004489,120]
[342670586,1732033840186,-184.41374825,0.000449,2]
[342670587,1732033840204,-3000.0,0.000449,2]
[342670588,1732033840214,-10778.02695409,0.000449,30]
[342670589,1732033840224,-282.45,0.00044913,120]
[342670590,1732033840234,-426.16946794,0.00044915,2]
[342670591,1732033840243,-500.0,0.00044999,2]
[342670592,1732033840252,-500.0,0.00044999,2]
[342670593,1732033840262,-564.01,0.00044999,2]
[342670594,1732033840275,-500.0,0.00044999,2]
[342670595,1732033840285,-500.0,0.00044999,2]
[342670596,1732033840295,-50000.0,0.00045,25]
[342670597,1732033840306,-545199.53751928,0.00045,2]
[342670598,1732033840317,-18126.87705967,0.00045,2]
[342670599,1732033840326,-800.0,0.00045,120]
[342670600,1732033840336,-15000.0,0.00045,120]
[342670601,1732033840346,-15096.0,0.00045,120]
[342670602,1732033840356,-57648.90647665,0.00045,2]
[342670603,1732033840366,-289.26453451,0.00045,120]
[342670604,1732033840375,-164149.84005041,0.00045,120]
[342670605,1732033840384,-35417.54854463,0.00045,60]
[342670606,1732033840393,-209.57013241,0.00045,120]
[342670607,1732033840403,-300.0,0.00045,30]
[342670608,1732033840412,-2282.47762888,0.00045,14]
[342670609,1732033840422,-3466.75,0.00045,120]
[342670610,1732033840432,-1743819.88343448,0.00045,120]
[342670611,1732033840442,-51776.39496964,0.00045,120]
[342670612,1732033840452,-3700.0,0.00045,14]
[342670613,1732033840461,-717.00905119,0.00045,120]
[342670614,1732033840471,-35005.31906262,0.00045,120]
[342670615,1732033840481,-16061.95541682,0.00045,30]